Cogmind - Beta 11.2 @@@ ROGUE MODE // 2023.01.03 @ 19:39:02 // Winter2022/Polymind Player: inSANE Result: Destroyed by L-31 Rogue with Katana Performance ------------- Evolutions (1) 500 Regions Visited (3) 600 Robots Destroyed (31) 155 Value Destroyed (936) 936 Prototype IDs (0) 0 Alien Tech Used (0) 0 Bonus (2407) 2407 TOTAL SCORE: 4078 Bonus ------- Polymind Skill 1970 Pacifist 200 High Alert Combat Kills 112 Follower Combat Kills 125 Cogmind --------- Core Integrity 0/400 Matter 61/100 Energy 215/215 System Corruption 5% Temperature Cool (1) Movement Core (200) Ox3 Location -9/Materials Parts ------- > --- POWER (1) -------- Improved Ion Engine > --- PROPULSION (2) --- (None) > --- UTILITY (3) ------ Heat Sink Heat Sink > --- WEAPON (2) ------- Beam Rifle > --- INVENTORY (1) ---- (None) Peak State ------------ > --- POWER ------------ Improved Ion Engine > --- PROPULSION ------- Light Treads Light Treads > --- UTILITY ---------- Heat Sink Heat Sink Light Armor Plating > --- WEAPON ----------- Beam Rifle Heavy Assault Rifle > --- INVENTORY -------- (None) [Rating: 11] Favorites ----------- Power Improved Ion Engine Engine Improved Ion Engine Propulsion Light Treads Treads Light Treads Wheel Compact Wheel Utility Heat Sink Device Heat Sink Storage Small Storage Unit Protection Light Armor Plating Weapon Heavy Assault Rifle Energy Gun Beam Rifle Ballistic Gun Heavy Assault Rifle Build | -11 -10 -10 -9 ------- Run | Scr Mat Min Mat Slots Evolved . | . . . . Power . | . . . . Propulsion . | . . . . Utility . | . . . . Weapon . | . . . . Parts Attached . | . . . . Power . | . . . . Engine . | . . . . Core . | . . . . Reactor . | . . . . Propulsion . | . . . . Treads . | . . . . Leg . | . . . . Wheel . | . . . . Hover . | . . . . Flight . | . . . . Utility . | . . . . Device . | . . . . Storage . | . . . . Processor . | . . . . Hackware . | . . . . Protection . | . . . . Artifact . | . . . . Weapon . | . . . . Energy Gun . | . . . . Energy Cannon . | . . . . Ballistic Gun . | . . . . Ballistic Cannon . | . . . . Launcher . | . . . . Special Weapon . | . . . . Impact Weapon . | . . . . Slashing Weapon . | . . . . Piercing Weapon . | . . . . Special Melee Weapon . | . . . . Unidentified Prototypes . | . . . . Parts Lost 8 | . . . 8 Power . | . . . . Propulsion 4 | . . . 4 Utility 3 | . . . 3 Weapon 1 | . . . 1 Highest Loss Streak 3 | . . . 3 To Critical Strikes . | . . . . Average Slot Usage (%) 91 | . 100 100 87 Engine 15 | . 20 20 12 Treads 12 | . . . 18 Wheel 15 | . 40 40 4 Device 20 | . 20 20 21 Storage 7 | . 20 20 2 Protection 5 | . . . 7 Energy Gun 6 | . . . 9 Ballistic Gun 7 | . . . 10 Naked Turns 1 | . . . 1 Heaviest Build 18 | 9 9 9 18 Greatest Support 40 | 32 32 32 40 Greatest Overweight (x) 4 | . . . 4 Average Overweight (x) . | . . . . Largest Inventory Capacity 4 | 4 4 4 4 Average Capacity 2 | 3 4 4 1 Most Carried 4 | 4 4 4 4 Average Carried 1 | 2 4 4 . Final Capacity 4 | 4 4 4 1 Final Carried 4 | 4 4 4 . Class Distribution -------------------- 61% | Sentry 38% | Recycler Dominant Class ---------------- Recycler | -10/Materials Recycler | -10/Mines Sentry | -9/Materials Resources | -11 -10 -10 -9 ----------- Run | Scr Mat Min Mat Matter Collected 227 | . . . 227 Remotely . | . . . . Salvage Created 1267 | . . . 1267 Parts 73 | . . . 73 Haulers Intercepted . | . . . . Recyclers Shooed . | . . . . Parts Field Recycled . | . . . . Retrieved Matter . | . . . . Parts Self-Destructed . | . . . . Prevented . | . . . . Kills | -11 -10 -10 -9 ------- Run | Scr Mat Min Mat Combat Hostiles Destroyed 26 | . . . 26 Guns 26 | . . . 26 Classes Destroyed 6 | . . . 6 Worker 2 | . . . 2 Watcher 3 | . . . 3 Swarmer 4 | . . . 4 Grunt 17 | . . . 17 Brawler 1 | . . . 1 Sentry 4 | . . . 4 Best Kill Streak 4 | . . . 4 Combat Bots Only 4 | . . . 4 Max Kills in Single Turn 2 | . . . 2 Gunslinging 1 | . . . 1 Exploded . | . . . . Melee . | . . . . Uniques/NPCs Destroyed . | . . . . Combat | -11 -10 -10 -9 -------- Run | Scr Mat Min Mat Damage Taken 1674 | . . . 1674 Core 421 | . . . 421 Absorbed by Shields . | . . . . Core Remaining (%) 100 | 100 . 100 . Volleys Fired 92 | . . . 92 Largest 2 | . . . 2 Hottest 79 | . . . 79 Shots Fired 174 | . . . 174 Gun 174 | . . . 174 Cannon . | . . . . Launcher . | . . . . Special . | . . . . Kinetic 91 | . . . 91 Thermal 83 | . . . 83 Explosive . | . . . . Electromagnetic . | . . . . Robot Hit Streak 14 | . . . 14 Robot Miss Streak 3 | . . . 3 Penetration Max . | . . . . Secondary Targets 3 | . . . 3 Max Gunslinging Chain 1 | . . . 1 Shots Hit Robots 122 | . . . 122 Core Hits 50 | . . . 50 Critical Kills 1 | . . . 1 Critical Parts Destroyed . | . . . . Critical Strikes 6 | . . . 6 Burn 5 | . . . 5 Destroy 1 | . . . 1 Melee Attacks . | . . . . Impact . | . . . . Slashing . | . . . . Piercing . | . . . . Sneak Attacks . | . . . . Combat Hostiles . | . . . . Follow-up Attacks . | . . . . Damage Inflicted 1763 | . . . 1763 Guns 1763 | . . . 1763 Cannons . | . . . . Explosions . | . . . . Melee . | . . . . Ramming . | . . . . Kinetic 986 | . . . 986 Thermal 777 | . . . 777 Explosive . | . . . . Electromagnetic . | . . . . Impact . | . . . . Slashing . | . . . . Piercing . | . . . . Highest Corruption 5 | . . . 5 Average Corruption 5 | . . . 5 Corruption Purged . | . . . . Corruption Blocked . | . . . . Effects 12 | . . . 12 Message Errors 1 | . . . 1 Matter Fused 2 | . . . 2 Energy Discharges 2 | . . . 2 Data Loss (minor) 1 | . . . 1 Data Loss (major) 3 | . . . 3 Misfires 1 | . . . 1 Weapon Failures 2 | . . . 2 Overload Shots . | . . . . Overflow Damage . | . . . . Projectiles . | . . . . Explosions . | . . . . Melee . | . . . . Knockbacks . | . . . . Impact . | . . . . Kinetic . | . . . . Secondary . | . . . . Self-Inflicted Damage . | . . . . Shots . | . . . . Rammed 1 | . . . 1 Targets Rammed 1 | . . . 1 Kicked . | . . . . Crushed . | . . . . Highest Temperature 182 | . . . 182 Average Temperature 38 | . . . 38 Received Heat Transfer 573 | . . . 573 Siege Activations . | . . . . Robots Corrupted . | . . . . Combat Hostiles . | . . . . Parts Fried . | . . . . Impact Corruptions . | . . . . Robots Melted . | . . . . Combat Hostiles . | . . . . Parts Melted 4 | . . . 4 Heat Transferred 2331 | . . . 2331 Parts Sabotaged . | . . . . Parts Stolen . | . . . . Parts Stripped . | . . . . Power Chain Reactions . | . . . . Missiles Intercepted . | . . . . Alert | -11 -10 -10 -9 ------- Run | Scr Mat Min Mat Peak Influence 586 | . 105 103 586 Initial 40 | . . 40 . Average 191 | . 32 65 256 Maximum Alert Level 2 | . . . 2 Low Security (%) 64 | 100 100 100 47 Level 1 11 | . . . 17 Level 2 23 | . . . 35 Level 3 . | . . . . Level 4 . | . . . . Level 5 . | . . . . High Security . | . . . . Max Security . | . . . . Squads Dispatched 4 | . . 1 3 Investigation . | . . . . Extermination . | . . . . Reinforcement 2 | . . . 2 Assault 2 | . . 1 1 Garrison . | . . . . Intercept . | . . . . Searches Triggered . | . . . . Construction Impeded . | . . . . Haulers Reinforced . | . . . . Active Scanning Responses . | . . . . Cargo Convoy Interrupts . | . . . . Stealth | -11 -10 -10 -9 --------- Run | Scr Mat Min Mat Distress Signals 5 | . . . 5 Communications Jammed . | . . . . Distress Signals . | . . . . Times Spotted 46 | . . . 46 Peak Tracking Total 5 | . . . 5 Tactical Retreats 1 | . . . 1 Traps | -11 -10 -10 -9 ------- Run | Scr Mat Min Mat Traps Triggered . | . . . . Indirectly . | . . . . Trap Hack Attempts . | . . . . Triggered . | . . . . Disarmed . | . . . . Reprogrammed . | . . . . Reused . | . . . . Traps Extracted . | . . . . Installed . | . . . . Triggered . | . . . . Machines | -11 -10 -10 -9 ---------- Run | Scr Mat Min Mat Machines Disabled . | . . . . Max in Single Turn . | . . . . Machines Sabotaged . | . . . . Garrisons Compromised . | . . . . Overloaded Fab Kills . | . . . . Hacking | -11 -10 -10 -9 --------- Run | Scr Mat Min Mat Machines Accessed 1 | . . 1 . Terminals . | . . . . Fabricators . | . . . . Repair Stations . | . . . . Recycling Units . | . . . . Scanalyzers . | . . . . Garrison Access . | . . . . Total Hacks 1 | . . 1 . Successful 1 | . . 1 . Failed . | . . . . Catastrophic . | . . . . Database Lockouts . | . . . . Manual . | . . . . Terminals . | . . . . Fabricators . | . . . . Repair Stations . | . . . . Recycling Units . | . . . . Scanalyzers . | . . . . Garrison Access . | . . . . Terminal Hacks 1 | . . 1 . Open Door 1 | . . 1 . Fabricator Hacks . | . . . . Repair Station Hacks . | . . . . Recycling Unit Hacks . | . . . . Scanalyzer . | . . . . Garrison Access Hacks . | . . . . Unauthorized Hacks . | . . . . Terminals . | . . . . Fabricators . | . . . . Repair Stations . | . . . . Recycling Units . | . . . . Scanalyzers . | . . . . Garrison Access . | . . . . Data Cores Recovered . | . . . . Used . | . . . . Hacking Detections . | . . . . Full Trace Events . | . . . . Feedback Events . | . . . . Feedback Blocked . | . . . . Robot Schematics Acquired . | . . . . Robots Built . | . . . . Authchips . | . . . . Time . | . . . . Total Robot Build Rating . | . . . . Part Schematics Acquired . | . . . . Parts Built . | . . . . Authchips . | . . . . Time . | . . . . Total Part Build Rating . | . . . . Parts Repaired . | . . . . Time . | . . . . Parts Recycled . | . . . . Recycled Matter . | . . . . Retrieved Matter . | . . . . Retrieved Components . | . . . . Parts Scanalyzed . | . . . . Part Schematics Acquired . | . . . . Parts Damaged . | . . . . Bothacking | -11 -10 -10 -9 ------------ Run | Scr Mat Min Mat Used RIF Installer . | . . . . Robots Hacked 2 | . . . 2 Non-combat . | . . . . Combat 2 | . . . 2 Robot Hacks Applied 2 | . . . 2 find_shortcuts 2 | . . . 2 Relay Couplers Released . | . . . . Fabnet Peak Effective % . | . . . . Robots Rewired . | . . . . Allies Hacked . | . . . . Hacks Repelled . | . . . . Allies | -11 -10 -10 -9 -------- Run | Scr Mat Min Mat Total Allies 1 | . . 1 . Largest Group 1 | . . 1 1 Highest-Rated Group 31 | . . 31 31 Highest-Rated Ally 31 | . . 31 31 Total Orders . | . . . . Ally Attacks 13 | . . 6 7 Total Damage 255 | . . 107 148 Kills 5 | . . 3 2 Allies Corrupted . | . . . . Allies Melted 1 | . . 1 . Intel | -11 -10 -10 -9 ------- Run | Scr Mat Min Mat Robot Analysis Total 2 | 1 . . 1 Derelict Logs Recovered 3 | . . 3 . Drone Launches . | . . . . Drone Recoveries . | . . . . Exploration | -11 -10 -10 -9 ------------- Run | Scr Mat Min Mat Turns Passed 1822 | 31 132 423 1236 Spaces Moved 949 | 32 133 406 378 Core 76 | 9 . . 67 Treads 208 | . . . 208 Legs . | . . . . Wheels 665 | 23 133 406 103 Hover . | . . . . Flight . | . . . . Fastest Speed 50 | 50 100 100 50 Average Speed 119 | 85 100 100 150 Slowest Speed 250 | 100 100 100 250 Overloaded Moves . | . . . . Propulsion Burnouts . | . . . . Robots Hopped . | . . . . Cave-ins Triggered . | . . . . Exploration Rate (%) 42 | 3 32 82 52 Regions Visited 3 Branch Regions 1 Pre-discovered Areas 1 | . . 1 . Known Exits Taken . | . . . . Unknown Exits Taken 3 | 1 1 1 . Scrap Searched . | . . . . Spaces Dug . | . . . . Terrain Destroyed . | . . . . Melee . | . . . . Projectile . | . . . . AOE . | . . . . Terrain Rammed . | . . . . Walls Destroyed . | . . . . Machines Disabled . | . . . . Actions | -11 -10 -10 -9 --------- Run | Scr Mat Min Mat Total 1462 | 35 132 423 872 Wait 419 | . . 18 401 Move 946 | 31 132 405 378 Hop . | . . . . Pick Up 4 | 4 . . . Fast Attach . | . . . . Attach . | . . . . Detach . | . . . . Swap . | . . . . Drop . | . . . . Fire 92 | . . . 92 Melee . | . . . . Ram 1 | . . . 1 Kick . | . . . . Crush . | . . . . Escape Stasis . | . . . . Rewire . | . . . . Trap . | . . . . Miscellaneous . | . . . . Route ------- -11/Scrapyard -10/Materials -10/Mines (discovered 2 exits: [*Mat x2]) -9/Materials (discovered 1 exit: [*Mat]) History --------- Turn | Location | Event 3 | -11/Scrapyard | Discovered new exit (range 15) 32 | -11/Scrapyard | Entered Materials 151 | -10/Materials | Discovered new exit (range 13) 164 | -10/Materials | Entered Mines 261 | -10/Mines | Learned Materials terminal intel 271 | -10/Mines | Learned location of Zion (-7) 317 | -10/Mines | Met a Derelict who couldn't figure out how to use a Trap Extractor 322 | -10/Mines | Met a Derelict testing a Signal Generator 402 | -10/Mines | Discovered new exit (range 10) 404 | -10/Mines | YI-UF0 nonchalantly dropped a Grenade Launcher on the ground 461 | -10/Mines | Discovered new exit (range 8) 587 | -10/Mines | Entered Materials 587 | -9/Materials | Accompanied by 1 ally 588 | -9/Materials | Loaded intel: 12 terminal locations 1632 | -9/Materials | Core integrity fell below 50% 1745 | -9/Materials | Discovered new exit (range 16) 1787 | -9/Materials | First assault squad dispatched 1813 | -9/Materials | Core integrity fell below 20% 1823 | -9/Materials | Destroyed by L-31 Rogue with Katana Last Messages --------------- 01749_ T-07 Excavator is excavating. 01776_ System corrupted: Component data lost. 01781_ System corrupted: Hvy. Assault Rifle jammed. 01787_ ALERT: Significant disruption in Zone 6M, assault force dispatched. 01787_ Y-45 Defender suffers critical hit (Burn). 01788_ C-30 ARC bursts open, deploying its payload. 01788_ G-47 Trooper unfolds itself. 01788_ M-13 Machinist unfolds itself. 01790_ G-47 Trooper destroyed. 01793_ Y-45 Defender heat damages Lgt. Treads. 01793_ G-34 Mercenary destroyed. 01793_ Switching to secondary target: Y-45 Defender. 01799_ G-34 Mercenary destroyed. 01799_ M-13 Machinist repairs Y-45 Defender. 01803_ M-13 Machinist repairs Lgt. Treads. 01806_ Lgt. Armor Plating destroyed. 01816_ Lgt. Treads destroyed. 01818_ System corrupted: Matter fused (-9). 01821_ Hvy. Assault Rifle severed. 01821_ Lgt. Treads destroyed. Map ----- +----------------------------------------------------+ | ???????????# ########### # """ #?????????? | | ???????????#![ + # """ #?????????? | | ???????????#![ # + #?????????? | | ???????????# # # """ #?????????? | | ???????????####?#+#+####### # """ #?????????? | | ????????????????? ????# # """ #?????????? | | ???????????????#""" ??# # #?????????? | | ???????????????#""" #?# ##+######??????????? | | ???????????????#""" #?# #??????????????????? | | ???????????????# #?# #??????????????????? | | ???????????????#""" #?# #??????????????????? | | ?????????????????"" #?# #??????????????????? | | ??????????????????" #?# #?+????????????????? | | ?????????????????? #?# #??????????????????? | | ??????????????????#######?# #??????????????????[ | | ??????????????????????????# #??????????????????] | | ??????????????????????????# #??????????????????? | | ??????????????????????????# #???#??????????????? | | ??????????????????????????# #?? #??????????????? | | ??????????????????????????# #? ???????????????? | | ??????????????????????????# ##/###?????????????? | | ??????????????????????????# #?????????????? | | ??????????????????????????# +?????????????? | | ????????????????########### #?????????????? | | ????????????????# [Yl=# ## ###?????????????? | | ??????????????????""" ""Y# #? #??????????????? | | ??????????????????""" ""m# #??#???????????????? | | ??????????????????""" T"=+ #??????????????????? | | ????????????????# ""[# #??????????????????? | | ????????????????# %=# < #??????????????????? | | ????????????????# # #??????????????????? | | ????????????????# #####??????????????????? | | ?????????????????## ######???????????????????????? | | ??????????????????#??????????????????????????????? | | ?????????????????????????????????????????????????? | | ?????????????????????????????????????????????????? | | ?????????????????????????????????????????????????? | | | | | | | | | | | | | | | | | | | | | | | | | | | +----------------------------------------------------+ Best States ------------- Heat Dissipation 36 Energy Generation 17 Energy Capacity 215 Matter Stores 100 Matter Capacity 100 Sight Range 16 Terrain Scan Density 10 Armor Coverage 150 Resistance: EX 50 Resistance: I 25 Evasion (%) 40 Recoil Reduction 2 Item Schematics ----------------- None Robot Schematics ------------------ None Fabricated ------------ Nothing Alien Tech Used ----------------- None Achievements -------------- None Challenges ------------ None Polymind | -11 -10 -10 -9 ---------- Run | Scr Mat Min Mat Hosts 3 | 1 . . 2 Combat Hostiles 2 | . . . 2 Allies . | . . . . Unique Host Classes 2 | 1 . . 1 Average Host Suspicion 82 | 3 51 75 89 Unsuspicious Activity 266 | 2 . . 264 Returns to Shadow . | . . . . Fuzzy Dispatches . | . . . . Protomatter Created 101 | . . 18 83 Used 51 | 5 . . 46 Decayed . | . . . . Highest Spend 23 | 5 . . 23 Top 5 Hosts by Kills: Y-45 Defender (-9/Materials: 19) Y-45 Defender (-9/Materials: 7) Game ------ Seed CloakEnhancedEngine Manual? 0 Play Time 00:17:56 Cumulative 142.1 hours Start 2023.01.03 @ 19:18:28 End 2023.01.03 @ 19:39:02 Sessions 1 Manual Loads 0 Difficulty Rogue Special Mode Winter2022/Polymind Game No. 74 Rogue 74 Adventurer 0 Explorer 0 Win Type - Total 0 Types 0/0/0/0/0/0/0/0/0 Lore% 48 Gallery% 56 Achievement% 57 Wizard Run 0 Options --------- ASCII 0 Keyboard 1 Movement Numpad Keybinds 1 Fullscreen 1 Font 18/SmallcapsGlow Map View 76x50 Tactical HUD 1 Map Filters NONE Filters NONE Steam 1 RUN: 58b7bdb9-bd2a-46e0-a043-b11e79e3052c